bitfinex/quotes_SOLUSD_20250802
["timestamp","ask_amount","ask_price","bid_price","bid_amount"]
[1754106942903,4.07391251,164.56,164.55,5.88505179]
[1754106943090,46.71391251,164.56,164.55,5.88505179]
[1754106944209,4.07391251,164.56,164.55,5.88505179]
[1754106944506,46.71391251,164.56,164.55,5.88505179]
[1754106944908,4.07391251,164.56,164.55,5.88505179]
[1754106945203,46.71391251,164.56,164.55,5.88505179]
[1754106945402,4.07391251,164.56,164.55,5.88505179]
[1754106945605,0.03,164.58,164.55,5.88505179]
[1754106945906,42.67,164.58,164.57,5.11505179]
[1754106946083,42.67,164.58,164.57,5.82505179]
[1754106948087,0.03,164.58,164.57,5.82505179]
[1754106951490,0.03,164.58,164.57,22.60973576]
[1754106955190,0.03,164.58,164.57,40.86846176]
[1754106955702,0.03,164.58,164.57,35.75340997]
[1754106955901,0.03,164.58,164.57,24.08377779]
[1754106956113,0.03,164.58,164.57,5.11505179]
[1754106956823,0.03,164.58,164.57,5.82505179]
[1754106960692,0.03,164.58,164.57,5.11505179]
[1754106962195,0.03,164.58,164.55,0.06]
[1754106962196,0.45,164.58,164.55,0.06]
[1754106962396,0.6074596,164.57,164.55,5.17505179]
[1754106962615,0.6074596,164.57,164.56,5.11505179]
[1754106963300,0.6374596,164.58,164.56,5.11505179]
[1754106963618,1.0574596,164.58,164.56,5.11505179]
[1754106964131,0.6374596,164.58,164.57,5.11505179]
[1754106964419,0.03,164.58,164.57,5.11505179]
[1754106964598,0.45,164.58,164.57,5.11505179]
[1754106964797,0.03,164.58,164.57,5.11505179]
[1754106969715,0.45,164.58,164.57,5.11505179]
[1754106970239,0.03,164.58,164.57,5.11505179]
[1754106975439,0.03,164.58,164.56,0.06]
[1754106975647,0.03,164.58,164.57,5.11505179]
[1754106976742,0.03,164.58,164.57,5.81505179]
[1754106977843,0.03,164.58,164.57,5.11505179]
[1754106978019,0.45,164.58,164.56,0.06]
[1754106978218,43.2274596,164.57,164.56,0.06]
[1754106978439,47.30123782,164.57,164.56,0.06]
[1754106978742,47.72123782,164.57,164.56,0.06]
[1754106979318,47.30123782,164.57,164.56,0.06]
[1754106980245,47.30123782,164.57,164.56,0.76]
[1754106980443,43.2274596,164.57,164.56,5.87505179]
[1754106980831,42.62,164.57,164.56,5.87505179]
[1754106981246,46.69533488,164.57,164.56,5.87505179]
[1754106981942,42.62,164.57,164.56,5.87505179]
[1754106984523,0.03,164.58,164.56,5.87505179]
[1754106984723,42.65,164.58,164.57,5.81505179]
[1754106988541,0.03,164.58,164.57,5.81505179]
[1754106993559,0.03,164.58,164.57,5.87505179]
[1754106995842,0.03,164.58,164.57,8.30984479]
[1754106996438,0.03,164.58,164.57,5.87505179]
[1754106997768,0.03,164.58,164.57,5.17505179]
[1754106998239,0.03,164.58,164.57,5.88505179]
[1754106998753,0.03,164.58,164.57,5.17505179]
[1754107000434,0.03,164.58,164.57,5.88505179]
[1754107022269,0.45,164.58,164.57,5.17505179]
[1754107022565,0.45,164.58,164.57,0.06]
[1754107023481,1.0574596,164.58,164.57,0.06]
[1754107023681,1.0574596,164.58,164.57,5.17505179]
[1754107023993,0.6374596,164.58,164.57,5.17505179]
[1754107024400,5.13683138,164.58,164.57,0.06]
[1754107025695,4.71683138,164.58,164.57,5.17505179]
[1754107026002,0.6374596,164.58,164.57,5.17505179]
[1754107026173,4.71683138,164.58,164.57,5.17505179]
[1754107026510,0.03,164.58,164.57,5.17505179]
[1754107026679,0.6374596,164.58,164.57,0.73]
[1754107026886,0.6374596,164.58,164.57,0.06]
[1754107027092,0.6374596,164.58,164.57,5.17505179]
[1754107029795,0.03,164.58,164.57,5.17505179]
[1754107030101,0.03,164.58,164.57,5.84505179]
[1754107031198,0.03,164.58,164.57,5.17505179]
[1754107031500,0.03,164.58,164.57,5.84505179]
[1754107031804,0.6374596,164.58,164.57,5.84505179]
[1754107032001,4.71683138,164.58,164.57,5.84505179]
[1754107032198,0.6374596,164.58,164.57,5.84505179]
[1754107034099,4.71683138,164.58,164.57,5.84505179]
[1754107034308,0.6374596,164.58,164.57,5.84505179]
[1754107034506,4.71683138,164.58,164.57,5.17505179]
[1754107034687,0.6374596,164.58,164.57,5.17505179]
[1754107034982,4.71683138,164.58,164.57,5.17505179]
[1754107035184,0.6374596,164.58,164.57,5.17505179]
[1754107035394,4.71683138,164.58,164.57,5.17505179]
[1754107035593,0.6374596,164.58,164.57,5.17505179]
[1754107035805,4.71683138,164.58,164.57,5.17505179]
[1754107036104,0.6374596,164.58,164.57,5.17505179]
[1754107036401,4.71683138,164.58,164.57,5.84505179]
[1754107036582,0.6374596,164.58,164.57,5.84505179]
[1754107039898,0.03,164.58,164.57,5.84505179]
[1754107041409,4.10937178,164.58,164.57,5.84505179]
[1754107041796,0.03,164.58,164.57,5.84505179]
[1754107042004,4.10937178,164.58,164.57,5.84505179]
[1754107042203,0.03,164.58,164.57,5.84505179]
[1754107042405,4.10937178,164.58,164.57,5.84505179]
[1754107042608,0.03,164.58,164.57,5.84505179]
[1754107042796,4.10937178,164.58,164.57,5.84505179]
[1754107042997,0.03,164.58,164.57,5.84505179]
[1754107043197,4.10937178,164.58,164.57,5.84505179]
[1754107043393,0.03,164.58,164.57,5.84505179]
[1754107043597,4.71683138,164.58,164.57,5.84505179]
[1754107043903,0.6374596,164.58,164.57,5.84505179]
[1754107044208,4.71683138,164.58,164.57,5.84505179]
[1754107044383,0.6374596,164.58,164.57,5.84505179]
[1754107044586,4.71683138,164.58,164.57,5.84505179]
[1754107044788,0.6374596,164.58,164.57,5.84505179]
[1754107045024,4.71683138,164.58,164.57,5.84505179]
[1754107045183,0.03,164.58,164.57,5.84505179]
[1754107045510,4.10937178,164.58,164.57,5.84505179]
[1754107045712,0.03,164.58,164.57,5.84505179]
[1754107045914,4.10937178,164.58,164.57,5.84505179]
[1754107046113,0.03,164.58,164.57,5.84505179]
[1754107046305,4.10937178,164.58,164.57,5.84505179]
[1754107046621,0.03,164.58,164.57,5.84505179]
[1754107046801,4.10937178,164.58,164.57,5.84505179]
[1754107047009,0.03,164.58,164.57,5.84505179]
[1754107047194,4.10937178,164.58,164.57,5.84505179]
[1754107047492,0.03,164.58,164.57,5.84505179]
[1754107047838,4.10937178,164.58,164.57,5.84505179]
[1754107048000,0.03,164.58,164.57,5.84505179]
[1754107048204,4.10937178,164.58,164.57,5.84505179]
[1754107048403,0.03,164.58,164.57,5.84505179]
[1754107058024,0.03,164.58,164.57,5.17505179]
[1754107059117,0.03,164.58,164.57,5.87505179]
[1754107068939,0.03,164.58,164.57,22.65973576]
[1754107069245,0.03,164.58,164.57,5.87505179]
[1754107085352,0.03,164.58,164.57,9.95826579]
[1754107087065,0.03,164.58,164.57,5.87505179]
[1754107088162,0.03,164.58,164.57,9.95826579]
[1754107090377,0.03,164.58,164.57,5.87505179]
[1754107091151,0.03,164.58,164.57,9.95826679]
[1754107091766,0.03,164.58,164.57,5.87505179]
[1754107092266,0.03,164.58,164.57,31.17505179]
[1754107092645,0.03,164.58,164.57,31.86505179]
[1754107094848,0.03,164.58,164.57,35.94826579]
[1754107096849,0.03,164.58,164.57,31.17505179]
[1754107097666,0.03,164.58,164.57,26.06]
[1754107097893,0.03,164.58,164.57,31.17505179]
[1754107098675,0.03,164.58,164.57,31.86505179]
[1754107114687,0.03,164.58,164.57,35.97826579]
[1754107115680,0.03,164.58,164.57,52.76294976]
[1754107115884,0.03,164.6,164.58,16.78468397]
[1754107116071,0.03,164.6,164.59,64.39973576]
[1754107116275,0.03,164.6,164.59,65.09973576]
[1754107116482,0.03,164.6,164.59,69.19323676]
[1754107120873,0.03,164.6,164.59,9.20855279]
[1754107121188,0.45,164.6,164.59,5.11505179]
[1754107121772,0.45,164.6,164.57,0.06]
[1754107121773,5.14899976,164.6,164.57,0.06]
[1754107121987,4.51154016,164.59,164.57,5.17505179]
[1754107122186,0.42,164.58,164.57,0.06]
[1754107122388,0.42,164.58,164.57,5.17505179]
[1754107122689,4.09154016,164.59,164.57,5.17505179]
[1754107122914,4.09154016,164.59,164.58,5.11505179]
[1754107123196,0.45,164.6,164.58,5.11505179]
[1754107123405,5.14899976,164.6,164.58,5.11505179]
[1754107123569,1.0574596,164.6,164.58,5.11505179]
[1754107123893,5.14899976,164.6,164.58,5.11505179]
[1754107124197,0.42,164.59,164.58,5.11505179]
[1754107124700,4.51154016,164.59,164.58,5.11505179]
[1754107125700,0.42,164.59,164.58,5.11505179]
[1754107126706,0.42,164.59,164.57,5.17505179]
[1754107126884,5.11899976,164.59,164.57,5.17505179]
[1754107127200,0.42,164.58,164.57,5.17505179]
[1754107127778,5.11899976,164.59,164.57,5.17505179]
[1754107128980,0.42,164.58,164.57,5.17505179]
[1754107130996,0.6074596,164.59,164.57,5.17505179]
[1754107131179,1.0274596,164.59,164.57,5.17505179]
[1754107132905,0.6074596,164.59,164.57,5.17505179]
[1754107133075,0.6074596,164.59,164.58,5.11505179]
[1754107135972,0.6074596,164.59,164.57,5.87505179]
[1754107136177,0.6074596,164.59,164.57,5.17505179]
[1754107137801,0.6074596,164.59,164.57,0.06]
[1754107137994,1.0274596,164.59,164.57,5.17505179]
[1754107139004,0.6074596,164.59,164.57,5.17505179]
[1754107140777,0.6074596,164.59,164.57,0.06]
[1754107140975,0.42,164.58,164.57,0.06]
[1754107141283,4.50131625,164.58,164.57,0.06]
[1754107141791,4.08131625,164.58,164.57,0.06]
[1754107143705,4.71877585,164.59,164.57,0.06]
[1754107144602,43.1374596,164.59,164.58,0.66]
[1754107145307,42.53,164.59,164.58,0.66]
[1754107145493,46.60916758,164.59,164.58,0.66]
[1754107146096,42.53,164.59,164.58,0.66]
[1754107146298,46.60905206,164.59,164.58,0.66]
[1754107147413,46.60905206,164.59,164.57,5.83505179]
[1754107147707,42.53,164.59,164.57,5.83505179]
[1754107148898,42.53,164.59,164.57,0.72]
[1754107149099,42.53,164.59,164.57,5.83505179]
[1754107149609,42.53,164.59,164.57,0.06]
[1754107149907,1.0274596,164.58,164.57,0.06]
[1754107150097,0.6074596,164.58,164.57,0.06]
[1754107150493,0.6074596,164.58,164.57,0.72]
[1754107154318,0.6074596,164.58,164.57,0.06]
[1754107160212,0.6074596,164.58,164.57,0.72]
[1754107163223,4.69023407,164.58,164.57,0.72]
[1754107163602,4.08277447,164.58,164.57,0.72]
[1754107164797,4.08277447,164.58,164.57,5.83505179]
[1754107165002,4.08277447,164.58,164.57,0.72]
[1754107167123,4.08277447,164.58,164.57,5.83505179]
[1754107167634,4.08277447,164.58,164.57,0.72]
[1754107170122,46.56277447,164.58,164.57,0.72]
[1754107175033,46.56277447,164.58,164.57,0.06]
[1754107178432,46.56277447,164.58,164.57,0.75]
[1754107178951,46.56277447,164.58,164.57,0.06]
[1754107179448,4.08277447,164.58,164.57,0.06]
[1754107179832,46.56277447,164.58,164.57,0.06]
[1754107181628,46.56277447,164.58,164.57,0.75]
[1754107186946,46.59277447,164.58,164.57,0.75]
[1754107189039,46.59277447,164.58,164.57,5.86505179]
[1754107190960,42.51,164.58,164.57,5.86505179]
[1754107191528,0.03,164.58,164.57,5.86505179]
[1754107193036,0.03,164.58,164.57,31.86505179]
[1754107193437,0.03,164.58,164.57,48.64973576]
[1754107196354,0.03,164.58,164.57,51.08423276]
[1754107202665,0.03,164.58,164.57,48.64973576]
[1754107203959,0.03,164.58,164.57,22.64973576]
[1754107204348,0.03,164.58,164.57,25.08423276]
[1754107206771,0.03,164.59,164.58,31.11505179]
[1754107206974,0.03,164.6,164.59,42.78468397]
[1754107207170,0.03,164.6,164.59,47.89973576]
[1754107207344,0.03,164.6,164.59,48.59973576]
[1754107208157,0.03,164.6,164.59,45.91888397]
[1754107208352,0.03,164.61,164.59,93.49393576]
[1754107208550,0.42,164.68,164.64,26.0]
[1754107208772,0.42,164.68,164.67,5.11505179]
[1754107209770,0.7074596,164.69,164.67,5.11505179]
[1754107209941,0.1,164.69,164.68,5.11505179]
[1754107211465,0.1,164.69,164.68,5.81505179]
[1754107214276,0.1,164.69,164.65,26.0]
[1754107214277,0.52,164.69,164.67,26.0]
[1754107214580,0.1,164.69,164.68,5.11505179]
[1754107219173,0.52,164.69,164.68,5.11505179]
[1754107220954,0.1,164.69,164.68,5.11505179]
[1754107223664,0.1,164.69,164.67,26.7]
[1754107223970,0.1,164.69,164.68,5.11505179]
[1754107225954,0.52,164.69,164.68,5.11505179]
[1754107226267,0.1,164.69,164.68,5.11505179]
[1754107232698,0.1,164.69,164.67,26.7]
[1754107232869,6.14251139,164.68,164.62,0.7]
[1754107233069,6.14251139,164.68,164.64,5.11505179]
[1754107233070,0.42,164.67,164.64,5.11505179]
[1754107233270,43.0274596,164.66,164.64,5.11505179]
[1754107233595,43.4474596,164.66,164.64,5.11505179]
[1754107234671,43.0274596,164.66,164.64,5.11505179]
[1754107236776,43.4474596,164.66,164.64,5.11505179]
[1754107237498,43.4474596,164.66,164.63,26.0]
[1754107237682,43.4474596,164.66,164.64,5.11505179]
[1754107238686,43.0274596,164.66,164.64,5.11505179]
[1754107242981,43.0274596,164.66,164.64,5.81505179]
[1754107243717,43.0274596,164.66,164.65,0.7]
[1754107243884,43.0274596,164.66,164.65,5.81505179]
[1754107244497,42.42,164.66,164.65,5.81505179]
[1754107251295,42.45,164.66,164.65,5.81505179]
[1754107254990,42.45,164.66,164.65,0.7]
[1754107255189,42.45,164.66,164.65,5.81505179]
[1754107256732,0.03,164.66,164.65,5.81505179]
[1754107259912,0.03,164.66,164.65,5.11505179]
[1754107260407,0.45,164.66,164.63,5.11505179]
[1754107260602,0.45,164.66,164.62,0.06]
[1754107260603,0.6074596,164.65,164.62,26.06]
[1754107260926,42.42,164.64,164.62,31.17505179]
[1754107261225,42.42,164.64,164.62,26.77]
[1754107261433,42.42,164.64,164.62,31.17505179]
[1754107262602,42.42,164.64,164.62,26.06]
[1754107262803,42.42,164.64,164.62,31.17505179]
[1754107263526,1.0274596,164.63,164.62,0.06]
[1754107263728,6.14251139,164.63,164.62,0.06]
[1754107263916,10.22596513,164.63,164.62,0.06]
[1754107264307,6.14251139,164.63,164.62,0.06]
[1754107264644,10.22509846,164.63,164.62,0.06]
[1754107264805,5.11004667,164.63,164.62,0.06]
[1754107265301,0.03,164.66,164.62,5.88505179]
[1754107265614,0.03,164.66,164.65,5.11505179]
[1754107265615,43.0574596,164.66,164.65,5.11505179]
[1754107265926,43.0574596,164.66,164.65,5.82505179]
[1754107266317,43.0574596,164.66,164.65,5.11505179]
[1754107266616,43.0574596,164.66,164.64,0.71]
[1754107266617,43.0574596,164.66,164.64,5.82505179]
[1754107268323,43.0574596,164.66,164.65,5.11505179]
[1754107268635,47.14008306,164.66,164.65,5.11505179]
[1754107268934,43.0574596,164.66,164.65,5.11505179]
[1754107269110,47.14003591,164.66,164.65,5.11505179]
[1754107269510,47.14003591,164.66,164.64,5.11505179]
[1754107269726,43.0574596,164.66,164.64,5.11505179]
[1754107270034,43.0574596,164.66,164.63,5.11505179]
[1754107270221,43.0574596,164.66,164.64,5.11505179]
[1754107270422,43.4774596,164.66,164.64,5.11505179]
[1754107270723,0.42,164.65,164.62,0.06]
[1754107270928,1.0274596,164.64,164.63,5.11505179]
[1754107271233,0.6074596,164.64,164.63,5.11505179]
[1754107271816,0.6074596,164.65,164.63,5.11505179]
[1754107273057,0.6074596,164.65,164.62,0.06]
[1754107273229,5.11084708,164.65,164.62,0.06]
[1754107273922,5.11084708,164.65,164.62,5.17505179]
[1754107274238,4.69084708,164.65,164.63,5.11505179]
[1754107274840,4.69084708,164.65,164.63,7.98419378]
[1754107275712,4.69084708,164.65,164.63,8.69419378]
[1754107276034,4.69084708,164.65,164.64,0.71]
[1754107277818,0.6074596,164.65,164.64,0.71]
[1754107278007,4.69291221,164.65,164.63,8.69419378]
[1754107282229,4.69291221,164.65,164.63,7.98419378]
[1754107282434,0.6074596,164.65,164.64,0.71]
[1754107282837,4.69232682,164.65,164.64,0.71]
[1754107283819,43.0574596,164.66,164.64,8.69419378]
[1754107284025,42.45,164.66,164.65,8.69419378]
[1754107284337,0.03,164.66,164.65,8.69419378]
[1754107289027,0.03,164.66,164.65,0.71]
[1754107289230,0.03,164.66,164.65,7.98419378]
[1754107290544,0.03,164.66,164.65,8.69419378]
[1754107292555,0.03,164.66,164.65,7.98419378]
[1754107292851,0.03,164.66,164.64,7.98419378]
[1754107293226,0.03,164.66,164.64,8.66419378]
[1754107294444,0.03,164.66,164.64,7.98419378]
[1754107294841,0.03,164.66,164.64,8.66419378]
[1754107296042,0.03,164.66,164.65,7.98419378]
[1754107296472,0.03,164.66,164.65,8.66419378]
[1754107298451,0.03,164.66,164.63,5.40186]
[1754107298631,0.03,164.66,164.65,7.98419378]
[1754107299136,0.03,164.66,164.65,8.66419378]
[1754107302354,0.03,164.66,164.65,0.68]
[1754107302563,0.03,164.66,164.65,8.66419378]
[1754107304754,0.03,164.66,164.65,5.78817623]
[1754107308964,0.03,164.66,164.65,8.65927515]
[1754107314453,0.03,164.66,164.65,0.68]
[1754107314768,0.03,164.66,164.65,8.65927515]
[1754107318559,0.03,164.66,164.65,7.97927515]
[1754107318750,0.03,164.66,164.64,26.68]
[1754107318953,0.03,164.66,164.65,7.97927515]
[1754107319189,0.03,164.66,164.65,8.65927515]
[1754107322782,0.03,164.66,164.65,7.97927515]
[1754107323282,5.14532812,164.66,164.63,7.97927515]
[1754107323456,0.42,164.65,164.63,7.97927515]
[1754107323869,0.6074596,164.64,164.63,7.97927515]
[1754107324685,0.6074596,164.64,164.62,8.03927515]
[1754107325071,0.6074596,164.64,164.62,8.75927515]
[1754107326297,0.6074596,164.64,164.63,8.69927515]
[1754107326984,0.6074596,164.64,164.63,0.72]
[1754107327184,4.69825894,164.64,164.62,8.75927515]
[1754107327386,4.69825894,164.64,164.63,0.72]
[1754107327689,0.6074596,164.64,164.63,0.72]
[1754107329084,0.6074596,164.64,164.63,8.69927515]
[1754107329488,0.6074596,164.64,164.62,8.03927515]
[1754107329664,5.11672947,164.64,164.62,8.03927515]
[1754107329866,4.69672947,164.64,164.62,8.75927515]
[1754107330885,4.69672947,164.64,164.62,5.89017778]
[1754107331089,4.69672947,164.64,164.62,0.06]
[1754107331268,4.69672947,164.64,164.62,0.78]
[1754107332364,4.69672947,164.64,164.62,0.06]
[1754107332563,9.80690725,164.64,164.62,0.06]
[1754107332792,5.11672947,164.64,164.62,0.06]
[1754107335299,4.69672947,164.64,164.62,0.06]
[1754107342101,4.69672947,164.64,164.62,0.78]
[1754107343207,4.69672947,164.64,164.62,0.06]
[1754107347309,4.69672947,164.64,164.62,0.78]
[1754107348510,4.69672947,164.64,164.62,0.06]
[1754107348704,5.11672947,164.64,164.62,0.06]
[1754107350412,4.69672947,164.64,164.62,0.06]
[1754107350914,4.69672947,164.64,164.62,0.74]
[1754107355308,42.38,164.63,164.62,0.74]
[1754107356012,42.38,164.63,164.62,5.85017778]
[1754107357800,42.38,164.63,164.62,0.74]
[1754107358000,42.38,164.63,164.62,5.85017778]
[1754107358820,42.9874596,164.63,164.62,5.85017778]
[1754107359498,42.9874596,164.63,164.62,0.74]
[1754107359806,42.38,164.63,164.62,5.85017778]
[1754107360925,42.38,164.63,164.62,5.17017778]
[1754107362021,46.4630601,164.63,164.62,5.17017778]
[1754107365715,46.4630601,164.63,164.62,5.85017778]
[1754107376730,4.0830601,164.63,164.62,5.85017778]
[1754107378223,0.03,164.64,164.62,5.85017778]
[1754107378416,4.12560035,164.64,164.63,5.79017778]
[1754107382345,4.12560035,164.64,164.63,0.68]
[1754107382514,4.12560035,164.64,164.63,5.79017778]
[1754107383645,4.12209332,164.64,164.63,5.79017778]
[1754107384646,0.03,164.64,164.63,5.79017778]
[1754107388047,4.11879207,164.64,164.63,5.79017778]
[1754107388350,4.11868771,164.64,164.63,5.79017778]
[1754107393432,0.03,164.64,164.63,5.79017778]
[1754107393638,4.11868771,164.64,164.63,5.79017778]
[1754107394128,0.03,164.64,164.63,5.79017778]
[1754107410365,0.03,164.64,164.63,26.2308889]
[1754107411152,0.03,164.64,164.63,5.79017778]
[1754107412564,0.03,164.64,164.63,52.2308889]
[1754107413754,0.03,164.64,164.63,69.01557287]
[1754107413956,0.03,164.66,164.65,26.0]
[1754107414156,0.03,164.66,164.65,31.11017778]
[1754107414350,0.03,164.66,164.65,31.79017778]
[1754107414769,0.03,164.66,164.65,34.22363878]
[1754107417489,0.03,164.67,164.65,34.8309877]
[1754107417696,0.03,164.68,164.66,31.11017778]
[1754107417995,0.03,164.68,164.67,31.11017778]
[1754107418367,0.03,164.68,164.67,31.79017778]
[1754107421799,0.1,164.69,164.67,31.79017778]
[1754107421977,0.1,164.69,164.68,31.11017778]
[1754107422172,0.1,164.69,164.68,31.79017778]
[1754107422483,0.1,164.7,164.68,31.79017778]
[1754107422685,0.1,164.7,164.69,5.79017778]
[1754107422994,0.1,164.73,164.72,26.0]
[1754107423184,0.1,164.73,164.72,51.5508889]
[1754107423369,0.1,164.73,164.72,52.2308889]
[1754107428223,0.1,164.75,164.72,52.2308889]
[1754107428384,0.1,164.75,164.74,5.11017778]
[1754107428897,0.1,164.75,164.74,5.79017778]
[1754107429091,0.1,164.75,164.74,8.22245378]
[1754107431917,0.1,164.75,164.74,25.00713775]
[1754107432090,0.1,164.76,164.75,5.11017778]
[1754107432293,0.1,164.76,164.75,5.79017778]
[1754107434584,0.1,164.76,164.75,8.22215878]
[1754107443811,0.1,164.76,164.75,2.431981]
[1754107444015,0.52,164.76,164.75,31.11017778]
[1754107444216,0.1,164.76,164.75,31.11017778]
[1754107446596,0.1,164.76,164.75,31.17017778]
[1754107460234,0.1,164.76,164.75,31.86017778]
[1754107461142,0.1,164.76,164.75,26.75]
[1754107461439,0.1,164.76,164.75,31.86017778]
[1754107467222,4.1618333,164.76,164.75,31.86017778]
[1754107472425,4.1618333,164.76,164.75,26.75]
[1754107472625,4.1618333,164.76,164.75,31.17017778]
[1754107473350,4.1618333,164.76,164.75,31.89017778]
[1754107474450,4.1618333,164.76,164.75,31.17017778]
[1754107474626,4.1618333,164.76,164.75,31.89017778]
[1754107480224,4.1618333,164.76,164.75,36.05201078]
[1754107487636,4.1618333,164.76,164.75,52.83669475]
[1754107487953,0.1,164.76,164.75,26.83669475]
[1754107491447,0.1,164.76,164.75,10.05201078]
[1754107495357,4.20004481,164.76,164.75,10.05201078]
[1754107495863,0.1,164.76,164.75,10.05201078]
[1754107497868,0.1,164.76,164.75,35.33201078]
[1754107498040,4.20004481,164.76,164.75,35.33201078]
[1754107498838,4.62004481,164.76,164.75,35.33201078]
[1754107499043,4.62004481,164.76,164.75,31.17017778]
[1754107499770,4.61718889,164.76,164.75,31.17017778]
[1754107499934,4.61718889,164.76,164.75,35.79022278]
[1754107500361,4.19718889,164.76,164.75,35.79022278]
[1754107500543,4.61718889,164.76,164.75,4.680045]
[1754107500750,4.61718889,164.76,164.75,0.06]
[1754107501258,46.85718889,164.76,164.75,0.06]
[1754107501769,51.97867501,164.76,164.75,0.06]
[1754107501968,51.97665733,164.76,164.75,0.06]
[1754107502265,57.08683511,164.76,164.75,0.06]
[1754107502651,51.97665733,164.76,164.75,0.06]
[1754107502852,46.85718889,164.76,164.75,0.06]
[1754107503053,51.96736667,164.76,164.75,0.06]
[1754107503462,57.08683511,164.76,164.75,0.06]
[1754107505848,63.15626943,164.76,164.75,0.06]
[1754107506355,58.02905768,164.76,164.75,0.06]
[1754107508152,104.21374165,164.76,164.75,0.06]
[1754107508357,130.21374165,164.76,164.75,0.06]
[1754107508563,130.21374165,164.76,164.73,0.06]
[1754107508564,47.89486175,164.74,164.73,0.06]
[1754107508760,52.59176693,164.74,164.73,0.06]
[1754107508953,53.01176693,164.74,164.73,0.06]
[1754107510070,59.0819381,164.74,164.73,0.06]
[1754107510471,64.18113056,164.74,164.73,0.06]
[1754107511053,69.29130856,164.74,164.73,0.06]
[1754107511951,26.0,164.71,164.63,5.11017778]
[1754107512158,5.11017778,164.67,164.63,0.68]
[1754107512371,47.95763738,164.66,164.63,0.68]
[1754107515451,54.03078987,164.66,164.62,0.06]
[1754107515650,5.11017778,164.64,164.62,0.06]
[1754107515887,42.8674596,164.63,164.62,0.06]
[1754107517876,42.8674596,164.63,164.62,0.74]
[1754107519167,42.8674596,164.63,164.62,0.06]
[1754107519778,42.8674596,164.63,164.62,0.74]
[1754107525471,42.8674596,164.63,164.62,8.72727448]
[1754107525798,42.8674596,164.63,164.62,0.74]
[1754107529283,42.8674596,164.63,164.62,8.72727448]
[1754107530401,0.6074596,164.65,164.62,8.72727448]
[1754107530569,42.26,164.64,164.63,8.69727448]
[1754107536598,42.26,164.64,164.63,17.45454948]
[1754107537672,42.26,164.64,164.63,8.69727448]
[1754107538982,42.26,164.64,164.63,5.81903639]
[1754107541106,42.26,164.64,164.63,0.71]
[1754107541286,42.26,164.64,164.63,5.81903639]
[1754107541490,42.26,164.64,164.63,0.71]
[1754107541699,42.26,164.64,164.63,5.81903639]
[1754107542080,1.0274596,164.68,164.63,5.81903639]
[1754107542400,42.68,164.67,164.64,0.71]
[1754107542586,0.6074596,164.66,164.64,0.71]
[1754107542788,0.6074596,164.66,164.64,5.10903639]
[1754107543090,1.0274596,164.66,164.64,5.10903639]
[1754107543689,1.0274596,164.66,164.62,5.16903639]
[1754107543690,0.42,164.65,164.62,5.16903639]
[1754107543874,42.8674596,164.64,164.62,5.16903639]
[1754107544073,42.8674596,164.64,164.62,5.87903639]
[1754107545798,42.8674596,164.64,164.63,5.10903639]
[1754107546401,42.8674596,164.64,164.62,0.06]
[1754107546602,42.8674596,164.64,164.62,5.16903639]
[1754107547404,42.8674596,164.64,164.62,5.87903639]
[1754107547984,42.8674596,164.64,164.63,0.71]
[1754107548186,42.8674596,164.64,164.63,5.81903639]
[1754107551512,46.95064904,164.64,164.63,5.81903639]
[1754107552613,42.8674596,164.64,164.63,5.81903639]
[1754107553315,46.95627998,164.64,164.63,5.81903639]
[1754107555288,4.08882038,164.64,164.63,5.81903639]
[1754107555487,46.33117088,164.66,164.63,5.81903639]
[1754107555691,42.24,164.66,164.65,5.10903639]
[1754107555915,46.33142311,164.66,164.65,5.81903639]
[1754107557909,46.33142311,164.66,164.62,26.06]
[1754107558099,42.24,164.66,164.65,5.10903639]
[1754107558284,46.33171225,164.66,164.65,5.10903639]
[1754107561625,46.33171225,164.66,164.65,5.81903639]